Cogmind - Beta 14 @@@ ROGUE MODE // 2024.11.14 @ 11:03:08 Player: MarKhan Result: Destroyed by Y-45 Defender with Heavy Assault Rifle Performance ------------- Evolutions (1) 500 Regions Visited (3) 600 Robots Destroyed (24) 120 Value Destroyed (440) 440 Prototype IDs (0) 0 Alien Tech Used (0) 0 Bonus (8) 8 TOTAL SCORE: 1668 Bonus ------- High Alert Combat Kills 8 Cogmind --------- Core Integrity 0/400 Matter 300/300 Energy 95/100 System Corruption 0% Temperature Cool (9) Movement Core (50) Location -9/Materials Parts ------- > --- POWER (1) -------- (None) > --- PROPULSION (2) --- (None) > --- UTILITY (4) ------ Visual Processing Unit Transport Network Coupler Improved Targeting Computer > --- WEAPON (2) ------- Hammer > --- INVENTORY (5) ---- Light Ion Engine Structural Scanner Utility Shielding Grenade Launcher Hammer Peak State ------------ > --- POWER ------------ (None) > --- PROPULSION ------- (None) > --- UTILITY ---------- Visual Processing Unit Seismic Detector Transport Network Coupler Improved Targeting Computer > --- WEAPON ----------- Small Laser Light Assault Rifle > --- INVENTORY -------- Light Ion Engine Structural Scanner Utility Shielding Grenade Launcher [Rating: 8] Favorites ----------- Power None Propulsion None Utility Visual Processing Unit Device Seismic Detector Processor Visual Processing Unit Weapon Small Laser Energy Gun Small Laser Ballistic Gun Light Assault Rifle Launcher Grenade Launcher Impact Weapon Hammer Build | -11 -10 -10 -9 ------- Run | Yrd Mat Min Mat Slots Evolved 2 | . . . 2 Power . | . . . . Propulsion . | . . . . Utility 2 | . . . 2 Weapon . | . . . . Parts Attached 23 | 3 17 . 3 Power . | . . . . Engine . | . . . . Core . | . . . . Reactor . | . . . . Propulsion . | . . . . Treads . | . . . . Leg . | . . . . Wheel . | . . . . Hover . | . . . . Flight . | . . . . Utility 9 | 1 6 . 2 Device 5 | 1 4 . . Storage . | . . . . Processor 4 | . 2 . 2 Hackware . | . . . . Protection . | . . . . Artifact . | . . . . Weapon 14 | 2 11 . 1 Energy Gun 7 | 1 6 . . Energy Cannon . | . . . . Ballistic Gun 3 | 1 2 . . Ballistic Cannon . | . . . . Launcher 3 | . 3 . . Special Weapon . | . . . . Impact Weapon 1 | . . . 1 Slashing Weapon . | . . . . Piercing Weapon . | . . . . Special Melee Weapon . | . . . . Unidentified Prototypes . | . . . . Parts Lost 1 | . . . 1 Power . | . . . . Propulsion . | . . . . Utility 1 | . . . 1 Weapon . | . . . . Highest Loss Streak 1 | . . . 1 To Critical Strikes . | . . . . Average Slot Usage (%) 48 | . 45 57 62 Device 11 | . 11 14 11 Processor 12 | . 10 14 32 Energy Gun 9 | . 8 14 8 Ballistic Gun 13 | . 13 14 8 Peak Build Rating 8 | 3 5 5 8 Average Rating 4 | 1 3 5 7 On Entrance 3 | . 2 5 5 Naked Turns . | . . . . Heaviest Build 5 | 4 5 3 3 Greatest Support 3 | 3 3 3 3 Greatest Overweight (x) 1 | 1 1 . . Average Overweight (x) . | . . . . Largest Inventory Capacity 5 | 5 5 5 5 Average Capacity 5 | 5 5 5 5 Most Carried 5 | 3 5 5 5 Average Carried 4 | 1 4 4 4 Final Capacity 5 | 5 5 5 5 Final Carried 5 | 3 5 5 5 Class Distribution -------------------- 93% | Mutant 6% | Scavenger-Mutant Dominant Class ---------------- Mutant | -10/Materials Mutant | -10/Mines Scavenger-Mutant | -9/Materials Resources | -11 -10 -10 -9 ----------- Run | Yrd Mat Min Mat Matter Collected 727 | 236 421 40 30 Remotely . | . . . . Salvage Created 691 | 104 531 . 56 Parts 46 | 5 39 . 2 Haulers Intercepted 2 | . 2 . . Recyclers Shooed . | . . . . Parts Field Recycled . | . . . . Retrieved Matter . | . . . . Parts Self-Destructed . | . . . . Prevented . | . . . . Kills | -11 -10 -10 -9 ------- Run | Yrd Mat Min Mat Combat Hostiles Destroyed 13 | . 12 . 1 Guns 10 | . 10 . . AOE 2 | . 2 . . Classes Destroyed 10 | 2 7 . 1 Worker 2 | . 2 . . Builder 1 | . 1 . . Tunneler 1 | 1 . . . Hauler 2 | . 2 . . Recycler 1 | 1 . . . Operator 2 | . 2 . . Watcher 2 | . 2 . . Swarmer 6 | . 6 . . Grunt 6 | . 6 . . Sentry 1 | . . . 1 Best Kill Streak 3 | 2 3 . 1 Combat Bots Only 3 | . 3 . 1 Max Kills in Single Turn 2 | 1 2 . 1 Gunslinging . | . . . . Exploded 1 | . 1 . . Melee . | . . . . Uniques/NPCs Destroyed . | . . . . Combat | -11 -10 -10 -9 -------- Run | Yrd Mat Min Mat Hostile Shots Fired 91 | . 32 . 59 Missed 21 | . 7 . 14 Damage Taken 798 | . 277 . 521 Core 554 | . 148 . 406 Absorbed by Shields . | . . . . Regen/Repaired (Parts) 39 | . 39 . . Core Remaining (%) 70 | 100 . 40 . Volleys Fired 100 | 2 98 . . Largest 2 | 2 2 . . Hottest 60 | 60 60 . . Shots Fired 130 | 4 126 . . Gun 125 | 4 121 . . Cannon . | . . . . Launcher 5 | . 5 . . Special . | . . . . Kinetic 95 | 2 93 . . Thermal 30 | 2 28 . . Explosive 5 | . 5 . . Electromagnetic . | . . . . Robot Hit Streak 14 | 4 14 . . Robot Miss Streak 4 | . 4 . . Penetration Max . | . . . . Secondary Targets . | . . . . Shots Hit Robots 90 | 4 76 . 10 Core Hits 39 | 2 35 . 2 Critical Kills 1 | 1 . . . Critical Parts Destroyed 2 | . . . 2 Critical Strikes 3 | 1 . . 2 Destroy 1 | 1 . . . Smash 2 | . . . 2 Melee Attacks 11 | . . . 11 Impact 11 | . . . 11 Slashing . | . . . . Piercing . | . . . . Sneak Attacks . | . . . . Combat Hostiles . | . . . . Follow-up Attacks . | . . . . Damage Inflicted 1200 | 49 959 . 192 Guns 937 | 49 888 . . Cannons . | . . . . Explosions 71 | . 71 . . Melee 192 | . . . 192 Ramming . | . . . . Kinetic 724 | 25 699 . . Thermal 213 | 24 189 . . Explosive 71 | . 71 . . Electromagnetic . | . . . . Impact 192 | . . . 192 Slashing . | . . . . Piercing . | . . . . Highest Corruption . | . . . . Average Corruption . | . . . . Corruption Purged . | . . . . Corruption Blocked . | . . . . Overload Shots . | . . . . Overflow Damage 34 | . . . 34 Projectiles . | . . . . Explosions . | . . . . Melee 34 | . . . 34 Knockbacks . | . . . . Impact . | . . . . Kinetic . | . . . . Secondary . | . . . . Self-Inflicted Damage 6 | . 6 . . Shots 1 | . 1 . . Rammed . | . . . . Targets Rammed . | . . . . Kicked . | . . . . Crushed . | . . . . Highest Temperature 20 | . 20 . . Average Temperature 8 | . 8 . . Received Heat Transfer 225 | . 99 . 126 Siege Activations . | . . . . Robots Corrupted 1 | . . . 1 Combat Hostiles 1 | . . . 1 Parts Fried 1 | . . . 1 Impact Corruptions 2 | . . . 2 Robots Melted . | . . . . Combat Hostiles . | . . . . Parts Melted . | . . . . Heat Transferred 475 | 50 425 . . Parts Sabotaged . | . . . . Parts Stolen . | . . . . Parts Stripped . | . . . . Power Chain Reactions . | . . . . Alert | -11 -10 -10 -9 ------- Run | Yrd Mat Min Mat Peak Influence 533 | 10 533 207 156 Initial 207 | . 6 207 80 Average 274 | 4 315 207 113 Maximum Alert Level 2 | . 2 1 . Low Security (%) 24 | 100 19 . 100 Level 1 48 | . 44 100 . Level 2 26 | . 35 . . Level 3 . | . . . . Level 4 . | . . . . Level 5 . | . . . . High Security . | . . . . Max Security . | . . . . Squads Dispatched 4 | . 3 . 1 Investigation 3 | . 2 . 1 Extermination . | . . . . Reinforcement 1 | . 1 . . Assault . | . . . . Garrison . | . . . . Intercept . | . . . . Searches Triggered . | . . . . Construction Impeded . | . . . . Haulers Reinforced . | . . . . Active Scanning Responses . | . . . . Cargo Convoy Interrupts . | . . . . Stealth | -11 -10 -10 -9 --------- Run | Yrd Mat Min Mat Distress Signals 4 | . 4 . . Communications Jammed . | . . . . Distress Signals . | . . . . Times Spotted 50 | . 44 . 6 Peak Tracking Total 6 | . 4 . 6 Tactical Retreats 5 | . 5 . . Traps | -11 -10 -10 -9 ------- Run | Yrd Mat Min Mat Traps Triggered . | . . . . Indirectly . | . . . . Trap Hack Attempts . | . . . . Triggered . | . . . . Disarmed . | . . . . Reprogrammed . | . . . . Reused . | . . . . Traps Extracted . | . . . . Installed . | . . . . Triggered . | . . . . Machines | -11 -10 -10 -9 ---------- Run | Yrd Mat Min Mat Machines Disabled 3 | . 3 . . Max in Single Turn 2 | . 2 . . Machines Repaired . | . . . . Machines Dismantled . | . . . . Machines Sabotaged . | . . . . Overloaded Fab Kills . | . . . . Hacking | -11 -10 -10 -9 --------- Run | Yrd Mat Min Mat Machines Accessed 11 | . 10 . 1 Terminals 8 | . 7 . 1 Fabricators . | . . . . Repair Stations 1 | . 1 . . Recycling Units 2 | . 2 . . Scanalyzers . | . . . . Garrison Access . | . . . . Total Hacks 41 | . 34 . 7 Successful 26 | . 22 . 4 Failed 15 | . 12 . 3 Catastrophic 3 | . 2 . 1 Database Lockouts . | . . . . Manual 26 | . 20 . 6 Terminals 34 | . 27 . 7 Fabricators . | . . . . Repair Stations 2 | . 2 . . Recycling Units 5 | . 5 . . Scanalyzers . | . . . . Garrison Access . | . . . . Terminal Hacks 7 | . 6 . 1 Part Schematic 1 | . 1 . . Branch Access Points 1 | . 1 . . Emergency Access Points 1 | . 1 . . Terminal Index 1 | . 1 . . Locate Traps 2 | . 2 . . Zone Layout 1 | . . . 1 Fabricator Hacks . | . . . . Repair Station Hacks 2 | . 2 . . Scan Component 1 | . 1 . . Repair 1 | . 1 . . Recycling Unit Hacks 1 | . 1 . . Retrieve Components 1 | . 1 . . Scanalyzer . | . . . . Garrison Access Hacks . | . . . . Unauthorized Hacks 16 | . 13 . 3 Terminals 14 | . 11 . 3 Assimilate 2 | . 2 . . Botnet 4 | . 3 . 1 Operators 2 | . 1 . 1 Skim 6 | . 5 . 1 Fabricators . | . . . . Repair Stations . | . . . . Recycling Units 2 | . 2 . . Tunnel 2 | . 2 . . Scanalyzers . | . . . . Garrison Access . | . . . . Data Cores Recovered . | . . . . Used . | . . . . Hacking Detections 11 | . 10 . 1 Full Trace Events 2 | . 1 . 1 Feedback Events . | . . . . Feedback Blocked . | . . . . Robot Schematics Acquired . | . . . . Robots Built . | . . . . Authchips . | . . . . Time . | . . . . Total Robot Build Rating . | . . . . Part Schematics Acquired 1 | . 1 . . Parts Built . | . . . . Authchips . | . . . . Time . | . . . . Total Part Build Rating . | . . . . Parts Repaired 1 | . 1 . . Time 26 | . 26 . . Parts Recycled . | . . . . Recycled Matter . | . . . . Retrieved Matter . | . . . . Retrieved Components 1 | . 1 . . Parts Scanalyzed . | . . . . Part Schematics Acquired . | . . . . Parts Damaged . | . . . . Bothacking | -11 -10 -10 -9 ------------ Run | Yrd Mat Min Mat Used RIF Installer . | . . . . Robots Hacked . | . . . . Non-combat . | . . . . Combat . | . . . . Robot Hacks Applied . | . . . . Relay Couplers Released . | . . . . Fabnet Peak Effective % . | . . . . Robots Rewired . | . . . . Allies Hacked . | . . . . Hacks Repelled . | . . . . Allies | -11 -10 -10 -9 -------- Run | Yrd Mat Min Mat Total Allies 3 | . 1 2 . Largest Group 2 | . 1 2 2 Highest-Rated Group 44 | . 10 44 44 Highest-Rated Ally 31 | . 10 31 31 Total Orders . | . . . . Ally Attacks 6 | . . . 6 Total Damage 126 | . . . 126 Kills . | . . . . Allies Corrupted . | . . . . Allies Melted . | . . . . Intel | -11 -10 -10 -9 ------- Run | Yrd Mat Min Mat Robot Analysis Total . | . . . . Derelict Logs Recovered 1 | . . 1 . Drone Launches . | . . . . Drone Recoveries . | . . . . Exploration | -11 -10 -10 -9 ------------- Run | Yrd Mat Min Mat Turns Passed 1325 | 34 979 204 108 Spaces Moved 1697 | 41 1137 371 148 Core 1697 | 41 1137 371 148 Treads . | . . . . Legs . | . . . . Wheels . | . . . . Hover . | . . . . Flight . | . . . . Fastest Speed 50 | 50 50 50 50 Average Speed 50 | 52 51 50 50 Slowest Speed 100 | 100 100 50 50 Overloaded Moves . | . . . . Propulsion Burnouts . | . . . . Robots Hopped . | . . . . Cave-ins Triggered . | . . . . Exploration Rate (%) 47 | 3 97 77 11 Regions Visited 3 Branch Regions 1 Pre-discovered Areas 4 | . 3 1 . Known Exits Taken 2 | . 1 1 . Unknown Exits Taken 1 | 1 . . . Scrap Searched 2 | . . 2 . Spaces Dug . | . . . . Terrain Destroyed 25 | . 25 . . Melee . | . . . . Projectile . | . . . . AOE 25 | . 25 . . Terrain Rammed . | . . . . Walls Destroyed . | . . . . Machines Disabled . | . . . . Actions | -11 -10 -10 -9 --------- Run | Yrd Mat Min Mat Total 2008 | 48 1406 389 165 Wait 163 | . 146 17 . Move 1694 | 40 1136 370 148 Hop . | . . . . Pick Up 6 | 2 2 1 1 Fast Attach 11 | 3 6 . 2 Attach 5 | . 4 . 1 Detach 6 | 1 5 . . Swap 7 | . 7 . . Drop 5 | . 2 1 2 Fire 100 | 2 98 . . Melee 11 | . . . 11 Ram . | . . . . Kick . | . . . . Crush . | . . . . Escape Stasis . | . . . . Rewire . | . . . . Trap . | . . . . Miscellaneous . | . . . . Route ------- -11/Scrapyard -10/Materials (discovered 4 exits: *Mat x3 / *Min) -10/Mines (discovered 2 exits: *Mat / Sub) -9/Materials (discovered 4 exits: Mat / Min / Sto x2) History --------- Turn | Location | Event 14 | -11/Scrapyard | Discovered new exit (range 15) 35 | -11/Scrapyard | Entered Materials 75 | -10/Materials | Discovered new exit (range 14) 332 | -10/Materials | Build established: Mutant 424 | -10/Materials | Core integrity fell below 50% 492 | -10/Materials | Discovered new exit (range 12) 639 | -10/Materials | Identified exit to Mines 642 | -10/Materials | Discovered new exit (range 18) 698 | -10/Materials | Learned Storage trap positions 700 | -10/Materials | Discovered new exit (range 8) 716 | -10/Materials | Identified exit to Materials 786 | -10/Materials | Learned location of 1 exit from Storage 816 | -10/Materials | Repaired Sml. Laser 830 | -10/Materials | Learned 2 Materials zone layouts 834 | -10/Materials | Learned location of Mines (-9) 835 | -10/Materials | Learned 8 Materials zone layouts 840 | -10/Materials | Learned 4 Recycling zone layouts 855 | -10/Materials | Learned location of 2 exits from Mines 878 | -10/Materials | Learned Storage garrison access intel 1014 | -10/Materials | Entered Mines 1015 | -10/Mines | Identified exit to Subcaves 1167 | -10/Mines | Learned location of Zion (-6) 1218 | -10/Mines | Entered Materials 1218 | -9/Materials | Accompanied by 2 allies 1218 | -9/Materials | Evolved 2 slots: Utility x2 1219 | -9/Materials | Identified exit to Storage 1219 | -9/Materials | Identified exit to Materials 1219 | -9/Materials | Identified exit to Mines 1223 | -9/Materials | Led the pair of lost Derelicts to an unsafe place 1312 | -9/Materials | Core integrity fell below 50% 1321 | -9/Materials | Core integrity fell below 20% 1326 | -9/Materials | Destroyed by Y-45 Defender with Heavy Assault Rifle Last Messages --------------- 01305_ JU-VDN(g) destroyed. 01306_ Y-45 Defender critical meltdown. 01306_ Y-45 Defender suffers critical hit (Smash). 01306_ Destroyed Lgt. Treads. 01306_ Y-45 Defender system corrupted by crushing effect. 01311_ K-01 Serf collects debris. 01312_ Y-45 Defender suffers critical hit (Smash). 01312_ Destroyed Heat Sink. 01312_ Y-45 Defender system corrupted by crushing effect. 01313_ Y-45 Defender system terminally corrupted. 01313_ Heat Sink fried. 01314_ Acquired 10 matter. 01318_ K-01 Serf collects debris. 01322_ Seismic Detector destroyed. 01325_ K-01 Serf collects debris. Map ----- +----------------------------------------------------+ | ?# % # ## ????????????????? | | ?########### ## ????????????????? | | ???#![[ # ## ????????????????? | | ???# [ + ## ????????????????? | | ???#![ # #########+????????????????? | | ???######### #???????# ????????????????? | | ???????##### #???????# ????????????????? | | ???????# #???????# ????????????????? | | ???????# #???????# ????????????????? | | ???????# #????????? | | ???????##### ######### ###### | | ???????????# #????###+### | | ???????????# ######???###+####??# | | ???????????# #???????? #??# | | ?######????# #????????""" "" #??# """ | | ?# ???# #??###???""" Y" #??# """ | | ?# #### #### ###?""" "" #??# """ | | ?# """ + # #? #??# | | ?# """ #### # T #?""" #??####### | | ?# """ ???# # #?""" #????????? | | ?# ????# # #?""" #????????? | | ?######+##?# # #? #????????? | | ?????# ### # """ #?###############?? | | ?????# =+% ""k #?# ### | | ?????# ########Y""" #?#"" # | | ?????##+##??????#@* #?#"T """"" + | | ????? ??????# % #?#"" """"" # | | ??? [! [ ????#[[[ ! #?# """"" ### | | ??# [! #???#*%s[ [#?# #?# | | ??# ! #???# s [ #?###############?# | | ??## ########???####+###?################# | | ???##??????????????? ???a | | ???????????????????? ?? | | ???????????????????? ? | | ???????????????????? ?????????????????? | | ???????????????????? ????????????????? | | ????????????????????# ???????????????? | | ????????????????????? ###???????????????? | | ????????????????????? #?????????????????? | | ????????????????????? #?????????????????? | | ?????????????????????? #?????????????????? | | ?????????????????????? #?????????????????? | | ?????????????????????????????????????????? | | ?????????????????????????????????????????? | | ?????????????????????????????????????????? | | ?????????????????????????????????????????? | | ?????????????????????????????????????????? | | ?????????????????????????????????????????? | | ?????????????????????????????????????????? | | ?????????????????????????????????????????? | +----------------------------------------------------+ Best States ------------- Heat Dissipation 28 Energy Generation 5 Energy Capacity 100 Matter Stores 300 Matter Capacity 300 Sight Range 18 Terrain Scan Density 10 Evasion (%) 50 Targeting Accuracy 6 Item Schematics ----------------- Utility Shielding | -10/Materials | Hacked Robot Schematics ------------------ None Fabricated ------------ Nothing Alien Tech Used ----------------- None Achievements -------------- None Challenges ------------ None Game ------ Seed AntimissilePhysicsFlail Manual? 0 Play Time 00:22:48 Cumulative 97.3 hours Start 2024.11.14 @ 10:40:00 End 2024.11.14 @ 11:03:08 Sessions 1 Manual Loads 0 Difficulty Rogue Special Mode None Game No. 98 Rogue 98 Adventurer 0 Explorer 0 Win Type - Total 2 Types 2/0/0/0/0/0/0/0/0 Lore% 51 Gallery% 51 Achievement% 43 Wizard Run 0 Options --------- Layout 1 ASCII 0 Keyboard 1 Movement Arrows Keybinds 0 Fullscreen 2 Font 24/Smallcaps Map View 50x35 Zoom Use 0% Tactical HUD 1 Map Filters NONE Filters NONE Steam 1 RUN: 9832cdb0-7415-4253-9b6d-3a7706fbf03b